bitfinex/quotes_SOLUSD_20260224
["timestamp","ask_amount","ask_price","bid_price","bid_amount"]
[1771952013163,0.47689823,77.619,77.584,45.1123943]
[1771952014068,0.47689823,77.617,77.584,0.49745452]
[1771952014964,0.47689823,77.625,77.584,0.49745452]
[1771952015163,12.88261362,77.624,77.584,0.49745452]
[1771952015748,0.47689823,77.623,77.584,0.49745452]
[1771952016361,12.88189725,77.629,77.586,0.49745452]
[1771952016562,13.35879548,77.629,77.586,0.49745452]
[1771952016774,0.47689823,77.628,77.586,0.49745452]
[1771952019950,0.47689823,77.628,77.588,0.49745452]
[1771952020661,13.69260373,77.64,77.588,0.49745452]
[1771952020662,0.47689823,77.639,77.588,0.49745452]
[1771952025346,13.69260373,77.65,77.59,0.49745452]
[1771952025553,0.47689823,77.652,77.593,0.49745452]
[1771952025753,0.47689823,77.649,77.593,0.49745452]
[1771952025969,0.47689823,77.639,77.593,0.49745452]
[1771952029350,0.47689823,77.639,77.595,0.49745452]
[1771952030270,0.47689823,77.637,77.595,0.49745452]
[1771952033278,0.47689823,77.637,77.597,0.49745452]
[1771952035557,0.47234931,77.636,77.599,0.46260489]
[1771952035960,45.08175631,77.637,77.589,0.46260489]
[1771952035961,0.47234931,77.619,77.589,0.46260489]
[1771952036155,0.47234931,77.619,77.581,0.46260489]
[1771952036355,0.47234931,77.619,77.571,45.11995461]
[1771952036356,5.10527161,77.61,77.572,0.46260489]
[1771952036568,0.47234931,77.609,77.572,0.46260489]
[1771952037291,0.47234931,77.599,77.571,12.8914156]
[1771952037572,0.47234931,77.599,77.571,0.46260489]
[1771952037975,0.47234931,77.609,77.571,0.46260489]
[1771952038168,0.47234931,77.616,77.571,0.46260489]
[1771952039380,0.47234931,77.628,77.571,0.46260489]
[1771952039960,0.47234931,77.626,77.573,0.46260489]
[1771952040160,0.47234931,77.619,77.573,0.46260489]
[1771952041478,13.68771547,77.62,77.572,45.11937295]
[1771952041479,0.47234931,77.599,77.572,45.11937295]
[1771952041661,0.47234931,77.599,77.572,12.89124941]
[1771952041868,0.47234931,77.599,77.57,32.32860294]
[1771952042173,0.47234931,77.605,77.571,0.46260489]
[1771952042561,0.47234931,77.612,77.571,0.46260489]
[1771952043978,0.47234931,77.619,77.571,0.46260489]
[1771952044176,0.47234931,77.619,77.573,0.46260489]
[1771952045970,0.47234931,77.617,77.573,0.46260489]
[1771952046578,0.47234931,77.615,77.575,0.46260489]
[1771952046958,12.88394145,77.616,77.574,45.11820969]
[1771952046959,0.47234931,77.599,77.574,45.11820969]
[1771952047563,0.47234931,77.599,77.56,0.1]
[1771952047879,0.47234931,77.589,77.56,0.1]
[1771952048085,0.47234931,77.579,77.56,0.1]
[1771952049070,0.47234931,77.578,77.554,12.89422565]
[1771952050061,13.68771547,77.57,77.557,44.56955431]
[1771952050884,5.36086188,77.599,77.532,0.50000017]
[1771952051067,13.68771547,77.58,77.534,0.50000017]
[1771952052058,13.68771547,77.57,77.534,0.50000017]
[1771952052674,32.21732518,77.598,77.534,0.50000017]
[1771952052675,13.68771547,77.58,77.534,0.50000017]
[1771952055288,12.89008623,77.579,77.536,0.50000017]
[1771952057279,5.11336597,77.58,77.538,0.50000017]
[1771952057873,3.69383402,77.584,77.538,0.50000017]
[1771952058072,5.11336597,77.58,77.538,0.50000017]
[1771952058591,12.88526955,77.608,77.54,0.50000017]
[1771952058814,5.11336597,77.59,77.54,0.50000017]
[1771952059374,5.11197103,77.59,77.54,0.50000017]
[1771952060497,12.886764,77.599,77.542,0.50000017]
[1771952061384,5.11197103,77.59,77.542,0.50000017]
[1771952061581,5.11197103,77.58,77.542,0.50000017]
[1771952061776,5.11197103,77.56,77.532,12.8977784]
[1771952061980,5.11197103,77.56,77.533,0.50000017]
[1771952062185,3.69383402,77.582,77.533,0.50000017]
[1771952062186,5.11197103,77.57,77.533,0.50000017]
[1771952062593,5.11197103,77.57,77.535,0.50000017]
[1771952062790,12.89101942,77.574,77.535,0.50000017]
[1771952062980,12.89032806,77.578,77.535,0.50000017]
[1771952064578,5.11197103,77.57,77.536,12.89723483]
[1771952064898,5.11197103,77.57,77.536,13.397235]
[1771952065482,5.11197103,77.56,77.536,12.89723483]
[1771952065889,5.11197103,77.57,77.536,12.89723483]
[1771952066787,5.11197103,77.55,77.53,0.1]
[1771952067097,3.69383402,77.566,77.531,0.50000017]
[1771952067395,5.11197103,77.56,77.53,0.1]
[1771952069196,18.00531628,77.56,77.53,0.60000017]
[1771952071704,18.00531628,77.56,77.531,13.39806674]
[1771952072809,51.5523564,77.592,77.53,0.1]
[1771952072810,5.11197103,77.57,77.532,0.50000017]
[1771952072976,5.11197103,77.59,77.532,0.50000017]
[1771952073300,5.11197103,77.58,77.532,0.50000017]
[1771952073489,5.11197103,77.59,77.532,0.50000017]
[1771952073893,12.886764,77.599,77.532,0.50000017]
[1771952075185,5.11197103,77.6,77.534,0.50000017]
[1771952076000,12.8849375,77.61,77.537,0.50000017]
[1771952076182,5.11197103,77.61,77.537,0.50000017]
[1771952076495,3.69383402,77.617,77.537,0.50000017]
[1771952076883,5.11197103,77.61,77.537,0.50000017]
[1771952077488,12.88510353,77.609,77.542,0.50000017]
[1771952078383,5.11197103,77.6,77.542,0.50000017]
[1771952079505,5.11197103,77.61,77.544,0.50000017]
[1771952080888,12.88510353,77.609,77.546,0.50000017]
[1771952081888,12.88510353,77.609,77.548,0.50000017]
[1771952082490,12.88344348,77.619,77.551,0.50000017]
[1771952083786,3.69383402,77.637,77.551,0.50000017]
[1771952084006,3.69383402,77.637,77.556,0.50000017]
[1771952085306,12.88062239,77.636,77.561,0.50000017]
[1771952085681,13.67906823,77.63,77.561,0.50000017]
[1771952087204,6.73495625,77.656,77.561,0.50000017]
[1771952087205,13.87906823,77.65,77.561,0.50000017]
[1771952087388,12.87846591,77.649,77.566,0.50000017]
[1771952087588,3.69383402,77.646,77.566,0.50000017]
[1771952087908,12.87846591,77.649,77.566,0.50000017]
[1771952090014,45.0746307,77.649,77.571,0.50000017]
[1771952090205,45.0746307,77.649,77.576,0.50000017]
[1771952093012,0.2,77.65,77.58,3.69383402]
[1771952093209,0.2,77.65,77.581,0.50000017]
[1771952094110,13.87906823,77.65,77.581,0.50000017]
[1771952094622,45.0746307,77.649,77.581,0.50000017]
[1771952094915,13.67906823,77.64,77.581,0.50000017]
[1771952095419,13.67906823,77.64,77.577,315.81525447]
[1771952095420,45.08043636,77.639,77.582,45.11355726]
[1771952095796,13.67906823,77.63,77.582,45.11355726]
[1771952096196,45.08043636,77.639,77.582,45.11355726]
[1771952097424,3.69383402,77.646,77.585,0.49000017]
[1771952097600,12.87846591,77.649,77.585,0.49000017]
[1771952098219,45.0746307,77.649,77.585,0.49000017]
[1771952099606,45.0746307,77.649,77.587,0.49000017]
[1771952100522,13.67906823,77.64,77.587,0.49000017]
[1771952101015,45.0746307,77.649,77.587,0.49000017]
[1771952101627,45.0746307,77.649,77.589,0.49000017]
[1771952103632,45.0746307,77.649,77.588,109.55302364]
[1771952103633,13.67906823,77.64,77.591,0.49000017]
[1771952103873,13.67906823,77.63,77.591,0.49000017]
[1771952104004,13.67906823,77.62,77.59,12.88825879]
[1771952104204,13.67906823,77.63,77.59,12.88825879]
[1771952104400,13.67906823,77.63,77.59,13.37825896]
[1771952104718,3.69383402,77.637,77.591,0.49000017]
[1771952105021,12.87846591,77.649,77.591,0.49000017]
[1771952105225,0.2,77.65,77.591,0.49000017]
[1771952105925,0.2,77.65,77.593,0.49000017]
[1771952106127,12.87846591,77.649,77.593,0.49000017]
[1771952106922,13.67906823,77.64,77.593,0.49000017]
[1771952107522,45.0746307,77.649,77.593,0.49000017]
[1771952108548,45.0746307,77.649,77.595,0.49000017]
[1771952108717,12.87846591,77.649,77.595,0.49000017]
[1771952108916,0.2,77.65,77.595,0.49000017]
[1771952110038,12.87846591,77.649,77.595,0.49000017]
[1771952110944,12.87846591,77.649,77.597,0.49000017]
[1771952114139,0.2,77.65,77.599,0.49000017]
[1771952114335,0.2,77.65,77.602,0.49000017]
[1771952115750,0.2,77.65,77.604,0.49000017]
[1771952116944,51.46124087,77.729,77.608,4.18383419]
[1771952117242,13.07175728,77.69,77.613,0.49000017]
[1771952117424,13.67906823,77.68,77.613,0.49000017]
[1771952117620,45.05722267,77.679,77.615,0.49000017]
[1771952117845,12.87349219,77.679,77.615,0.49000017]
[1771952118870,45.05722267,77.679,77.615,0.49000017]
[1771952119144,12.87349219,77.679,77.615,0.49000017]
[1771952119646,12.87183513,77.689,77.62,0.49000017]
[1771952121947,12.87183513,77.689,77.622,0.49000017]
[1771952122750,5.36086188,77.719,77.625,0.49000017]
[1771952122927,12.86686653,77.719,77.625,0.49000017]
[1771952123131,3.69383402,77.716,77.625,0.49000017]
[1771952123327,13.65884209,77.71,77.625,0.49000017]
[1771952124755,12.8685223,77.709,77.63,0.49950248]
[1771952126252,12.86693383,77.719,77.63,0.49950248]
[1771952126452,0.2,77.72,77.65,3.69383402]
[1771952126759,0.2,77.72,77.654,3.69383402]
[1771952127655,0.2,77.72,77.658,0.1004888]
[1771952128743,12.86686653,77.719,77.658,0.1004888]
[1771952128941,12.86686653,77.719,77.659,0.49000017]
[1771952131744,0.2,77.72,77.661,0.49000017]
[1771952131947,13.06678302,77.72,77.661,0.49000017]
[1771952133559,5.09529017,77.71,77.661,0.49000017]
[1771952133895,12.8685223,77.709,77.662,45.55708574]
[1771952134047,12.8685223,77.709,77.663,0.49000017]
[1771952135855,12.8685223,77.709,77.665,0.49000017]
[1771952138163,45.03403285,77.719,77.667,0.49000017]
[1771952138348,12.86686653,77.719,77.667,0.49000017]
[1771952139962,0.2,77.72,77.667,0.49000017]
[1771952140841,0.2,77.72,77.669,0.49000017]
[1771952142565,5.09529017,77.71,77.669,0.49000017]
[1771952142760,12.86686653,77.719,77.671,0.49000017]
[1771952144349,0.2,77.72,77.671,0.49000017]
[1771952145068,0.2,77.72,77.673,0.49000017]
[1771952145252,12.86686653,77.719,77.673,0.49000017]
[1771952145563,12.86686653,77.719,77.672,45.06128334]
[1771952145760,45.03403285,77.719,77.672,45.55128351]
[1771952145954,45.03403285,77.719,77.673,0.49000017]
[1771952149349,45.03403285,77.719,77.675,0.49000017]
[1771952150243,5.09529017,77.71,77.674,45.55012323]
[1771952150468,5.09529017,77.71,77.675,0.49000017]
[1771952150653,45.03403285,77.719,77.675,0.49000017]
[1771952151062,5.09529017,77.71,77.674,12.87432087]
[1771952151566,5.09529017,77.7,77.667,12.87548122]
[1771952151754,5.09529017,77.69,77.657,12.87713921]
[1771952152158,5.09529017,77.7,77.657,45.06998724]
[1771952152875,5.09529017,77.7,77.657,45.55998741]
[1771952153577,5.09529017,77.7,77.658,0.49000017]
[1771952155047,3.69383402,77.707,77.66,0.49000017]
[1771952155248,5.09529017,77.71,77.66,0.49000017]
[1771952157270,12.8685223,77.709,77.662,0.49000017]
[1771952158569,12.86686653,77.719,77.662,0.49000017]
[1771952159460,12.86686653,77.719,77.664,0.49000017]
[1771952160568,13.06676205,77.72,77.664,0.49000017]
[1771952161563,0.2,77.72,77.666,0.49000017]
[1771952163175,0.2,77.76,77.67,3.69383402]
[1771952163379,0.2,77.76,77.671,0.49000017]
[1771952163554,0.2,77.76,77.676,0.49000017]
[1771952163555,12.8610178,77.755,77.676,0.49000017]
[1771952163760,12.86037456,77.759,77.676,0.49000017]
[1771952164475,12.86190176,77.749,77.676,0.49000017]
[1771952165059,45.01665616,77.749,77.676,0.49000017]
[1771952166757,45.01665616,77.749,77.68,3.69383402]
[1771952166964,45.01665616,77.749,77.681,0.49000017]
[1771952168677,5.09529017,77.74,77.681,0.49000017]
[1771952168885,5.09529017,77.74,77.677,45.05838278]
[1771952168886,12.8625635,77.745,77.683,0.49000017]
[1771952169371,0.2,77.75,77.686,0.49000017]
[1771952169564,0.2,77.75,77.69,0.49000017]
[1771952171158,0.2,77.75,77.692,0.49000017]
[1771952172186,0.2,77.76,77.696,0.49000017]
[1771952172383,12.85768883,77.775,77.697,0.49000017]
[1771952172586,12.85768883,77.775,77.702,0.49000017]
[1771952172781,0.2,77.78,77.707,0.49000017]
[1771952173281,0.2,77.78,77.712,0.49000017]
[1771952173480,0.2,77.79,77.712,0.49000017]
[1771952173878,198.72848776,77.813,77.721,0.49000017]
[1771952174059,198.72848776,77.813,77.726,0.49000017]
[1771952174060,32.12848776,77.813,77.726,0.49000017]
[1771952174881,32.12848776,77.813,77.731,0.49000017]
[1771952175879,12.85033218,77.819,77.731,0.49000017]
[1771952176063,3.69383402,77.816,77.734,3.69383402]
[1771952176264,3.69383402,77.816,77.735,0.49000017]
[1771952177674,12.85097368,77.816,77.74,0.49000017]
[1771952178180,5.09529017,77.81,77.74,0.49000017]
[1771952179376,12.8519837,77.809,77.742,0.49000017]
[1771952179890,44.98194295,77.809,77.742,0.49000017]
[1771952181576,44.98194295,77.809,77.744,0.49000017]
[1771952184387,44.98194295,77.809,77.746,0.49000017]
[1771952186785,12.85049731,77.818,77.751,0.49000017]
[1771952187590,44.9707674,77.829,77.751,0.49000017]
[1771952189073,44.9707674,77.829,77.756,0.49000017]
[1771952191102,44.97616263,77.819,77.758,0.49000017]
[1771952192780,12.85033218,77.819,77.758,0.49000017]
[1771952193199,32.12566019,77.82,77.76,0.49000017]
[1771952193797,37.20896253,77.82,77.76,0.49000017]
[1771952194899,12.84934147,77.825,77.76,0.49000017]
[1771952195285,44.97269514,77.825,77.762,0.49000017]
[1771952195801,12.84934147,77.825,77.762,0.49000017]
[1771952196310,17.93184253,77.83,77.762,0.49000017]
[1771952196482,3.69383402,77.846,77.765,0.49000017]
[1771952196683,32.11551307,77.844,77.765,0.49000017]
[1771952197196,12.84554516,77.848,77.767,0.49000017]
[1771952197405,12.84554516,77.848,77.77,0.49000017]
[1771952199505,3.69383402,77.856,77.772,0.49000017]
[1771952200094,5.08330234,77.85,77.772,0.49000017]
[1771952200294,5.08330234,77.84,77.772,0.49000017]
[1771952200815,3.69383402,77.847,77.772,0.49000017]
[1771952201107,3.69383402,77.856,77.772,0.49000017]
[1771952201312,5.08330234,77.85,77.772,0.49000017]
[1771952202006,5.08330234,77.84,77.777,0.49000017]
[1771952202797,44.95883054,77.849,77.777,0.49000017]
[1771952203313,12.84538015,77.849,77.777,0.49000017]
[1771952203695,12.84480052,77.853,77.777,0.49000017]
[1771952204100,5.08330234,77.86,77.782,0.49000017]
[1771952206509,5.08330234,77.85,77.783,109.278377]
[1771952206711,5.08330234,77.85,77.787,0.49000017]
[1771952206911,5.08330234,77.84,77.787,0.49000017]
[1771952207909,44.96056315,77.846,77.789,0.49000017]
[1771952211098,44.96056315,77.846,77.791,0.49000017]
[1771952212433,5.08330234,77.84,77.791,0.49000017]
[1771952213100,44.96056315,77.846,77.791,0.49000017]
[1771952213295,44.96056315,77.846,77.79,44.99292967]
[1771952213296,5.36086188,77.886,77.795,3.69383402]
[1771952213520,12.83927791,77.886,77.796,0.49000017]
[1771952213724,12.83745331,77.898,77.8,3.69383402]
[1771952214025,0.1,77.9,77.814,5.36086188]
[1771952214203,0.1,77.91,77.818,5.36086188]
[1771952214522,0.2,77.92,77.841,3.69383402]
[1771952214816,0.2,77.92,77.842,0.49000017]
[1771952215017,12.83384027,77.919,77.842,0.49000017]
[1771952215224,44.91844094,77.919,77.847,0.49000017]
[1771952215724,12.83384027,77.919,77.847,0.49000017]
[1771952216510,0.2,77.92,77.847,0.49000017]
[1771952216715,12.83384027,77.919,77.847,0.49000017]
[1771952217023,0.2,77.92,77.847,0.49000017]
[1771952217211,0.2,77.92,77.852,0.49000017]
[1771952219331,0.1,77.94,77.858,5.36086188]
[1771952219501,0.1,77.94,77.862,0.49000017]
[1771952220096,12.83054696,77.939,77.862,0.49000017]
[1771952220303,13.57855595,77.93,77.862,0.49000017]
[1771952221012,3.69383402,77.936,77.862,0.49000017]
[1771952221430,12.83120549,77.935,77.864,0.49000017]
[1771952221732,13.57855595,77.92,77.864,0.49000017]
[1771952222110,13.57855595,77.91,77.863,44.95074682]
[1771952223048,3.69383402,77.917,77.864,0.49000017]
[1771952223411,13.57855595,77.91,77.864,0.49000017]
[1771952223629,13.57855595,77.91,77.866,0.49000017]
[1771952225215,13.57855595,77.91,77.865,44.94959224]
[1771952225622,13.57855595,77.91,77.866,0.49000017]
[1771952225623,12.83548755,77.909,77.866,0.49000017]
[1771952226829,13.57855595,77.9,77.85,12.84521515]
[1771952227125,13.57855595,77.89,77.85,12.84521515]
[1771952227327,13.57855595,77.89,77.85,44.95825304]
[1771952227626,13.57855595,77.89,77.852,12.84488516]
[1771952229537,12.83878339,77.889,77.852,12.84488516]
[1771952229724,13.57855595,77.9,77.853,0.49000017]
[1771952229927,3.69383402,77.907,77.853,0.49000017]
[1771952231334,13.57855595,77.91,77.853,0.49000017]
[1771952231548,12.83384027,77.919,77.855,0.49000017]
[1771952231725,3.69383402,77.916,77.855,0.49000017]
[1771952231925,13.57855595,77.91,77.855,0.49000017]
[1771952232320,3.69383402,77.916,77.855,0.49000017]
[1771952232640,13.57855595,77.91,77.855,0.49000017]
[1771952232810,3.69383402,77.916,77.855,0.49000017]
[1771952233012,13.57855595,77.9,77.855,0.49000017]
[1771952236460,44.92997342,77.899,77.856,12.84422523]
[1771952236754,44.92997342,77.899,77.856,13.3342254]
[1771952237047,44.92997342,77.899,77.856,45.44478849]
[1771952237429,44.92997342,77.899,77.857,0.49000017]
[1771952237624,12.83661076,77.903,77.857,0.49000017]
[1771952237839,13.57855595,77.9,77.857,0.49000017]
[1771952239553,12.83713526,77.899,77.859,0.49000017]
[1771952240636,12.83713526,77.899,77.856,32.11056309]
[1771952240637,44.92997342,77.899,77.86,13.33356554]
[1771952240836,44.92997342,77.899,77.861,0.49000017]
[1771952243249,13.58442151,77.9,77.862,12.84323546]
[1771952243444,13.58442151,77.9,77.863,0.49000017]
[1771952245633,12.83713526,77.899,77.865,0.49000017]
[1771952246354,12.83713526,77.899,77.864,12.84290557]
[1771952246852,13.58442151,77.89,77.859,12.84364291]
[1771952247932,12.83878339,77.889,77.856,0.49000017]
[1771952248926,12.83730005,77.898,77.856,0.49000017]
[1771952249451,12.83581706,77.907,77.856,0.49000017]
[1771952249948,13.58442151,77.92,77.828,3.69383402]
[1771952249949,12.83400497,77.918,77.858,0.49000017]
[1771952252439,12.83400497,77.918,77.852,51.37917275]
[1771952252440,12.83400497,77.918,77.86,0.49000017]
[1771952253238,13.58442151,77.91,77.86,0.49000017]
[1771952253545,13.58442151,77.91,77.842,0.49000017]
[1771952253858,13.58442151,77.91,77.812,56.76618234]
[1771952253859,3.69383402,77.897,77.844,0.49000017]
[1771952254031,13.58442151,77.9,77.844,0.49000017]
[1771952254234,12.83713526,77.899,77.846,0.49000017]
[1771952255040,3.69383402,77.905,77.846,0.49000017]
[1771952256856,12.83631135,77.904,77.848,0.49000017]
[1771952257265,5.0713816,77.9,77.848,0.49000017]
[1771952259865,12.83713526,77.899,77.85,0.49000017]
[1771952261767,5.0713816,77.93,77.855,0.49000017]
[1771952261942,3.69383402,77.927,77.855,0.49000017]
[1771952262142,5.0713816,77.92,77.855,0.49000017]
[1771952264165,5.0713816,77.92,77.857,0.49000017]
[1771952264166,12.83384027,77.919,77.857,0.49000017]
[1771952265068,12.83384027,77.919,77.86,0.49000017]
[1771952265443,3.69383402,77.936,77.86,0.49000017]
[1771952265649,0.1,77.94,77.86,0.49000017]
[1771952266055,0.1,77.94,77.865,0.49000017]
[1771952266556,0.1,77.94,77.871,3.69383402]
[1771952266754,0.1,77.96,77.881,0.49000017]
[1771952266966,0.1,77.96,77.883,0.49000017]
[1771952267661,12.9271029,77.96,77.883,0.49000017]
[1771952267972,17.9984845,77.96,77.883,0.49000017]
[1771952268349,5.0713816,77.95,77.888,0.49000017]
[1771952268649,5.0713816,77.94,77.888,0.49000017]
[1771952269465,50.06621153,77.96,77.888,0.49000017]
[1771952269466,3.69383402,77.956,77.888,0.49000017]
[1771952269666,5.0713816,77.95,77.888,0.49000017]
[1771952270549,12.82875116,77.95,77.89,0.49000017]
[1771952270767,17.90013276,77.95,77.89,0.49000017]
[1771952271256,26.39460963,77.95,77.89,0.49000017]
[1771952272964,26.39460963,77.95,77.892,0.49000017]
[1771952273165,58.46645055,77.95,77.892,0.49000017]
[1771952273676,12.82875116,77.95,77.892,0.49000017]
[1771952274055,26.39460963,77.95,77.892,0.49000017]
[1771952274584,12.82875116,77.95,77.892,0.49000017]
[1771952274866,13.56585847,77.95,77.893,44.93343432]
[1771952275072,13.56585847,77.95,77.894,0.49000017]
[1771952275473,0.1,77.96,77.896,3.69383402]
[1771952275663,0.1,77.96,77.897,0.49000017]
[1771952276066,13.56585847,77.95,77.897,0.49000017]
[1771952277379,13.56585847,77.94,77.899,0.49000017]
[1771952277565,44.90115331,77.949,77.899,0.49000017]
[1771952279065,12.82840751,77.952,77.899,0.49000017]
[1771952279259,13.56585847,77.95,77.899,0.49000017]
[1771952279574,12.82890094,77.949,77.901,0.49000017]
[1771952280661,12.82725535,77.959,77.901,0.49000017]
[1771952280873,0.1,77.96,77.901,0.49000017]
[1771952281787,13.56585847,77.99,77.906,0.49000017]
[1771952282259,12.82067718,77.999,77.91,3.69383402]
[1771952282460,0.1,78.0,77.911,0.49000017]
[1771952282674,0.1,78.0,77.915,0.49000017]
[1771952283378,0.1,78.0,77.924,0.49000017]
[1771952283581,0.1,78.0,77.936,0.49000017]
[1771952284479,0.1,78.0,77.936,1.28310408]
[1771952284780,0.1,78.0,77.937,0.49000017]
[1771952285579,0.1,78.0,77.942,0.49000017]
[1771952286658,0.1,78.01,77.946,3.69383402]
[1771952286860,0.1,78.01,77.947,0.49000017]
[1771952288480,0.1,78.01,77.951,3.69383402]
[1771952288686,0.1,78.01,77.952,0.49000017]
[1771952289000,12.81213565,78.051,77.953,0.49000017]
[1771952289278,0.2408126,78.056,77.972,0.49000017]
[1771952289882,0.2408126,78.056,77.976,3.69383402]
[1771952290080,0.2408126,78.056,77.98,3.69383402]
[1771952290283,0.2408126,78.056,77.981,0.49000017]
[1771952290467,13.05220881,78.056,77.981,0.49000017]
[1771952290669,13.05220881,78.056,77.983,0.49000017]
[1771952290670,13.56585847,78.05,77.983,0.49000017]
[1771952291472,13.05220881,78.056,77.983,0.49000017]
[1771952292385,13.56585847,78.05,77.983,0.49000017]
[1771952293189,12.81246396,78.049,77.985,0.49000017]
[1771952295369,12.81147908,78.055,77.986,108.99392197]
[1771952295570,12.81147908,78.055,77.987,0.49000017]
[1771952296289,12.81147908,78.055,77.99,0.49000017]
[1771952296668,0.2408126,78.056,77.99,0.49000017]
[1771952297499,12.81147908,78.055,77.992,0.49000017]
[1771952298002,44.84017679,78.055,77.992,0.49000017]
[1771952298480,12.81147908,78.055,77.992,0.49000017]
[1771952299173,13.56585847,78.05,77.992,0.49000017]
[1771952299368,44.84017679,78.055,77.992,0.49000017]
[1771952299768,13.56585847,78.05,77.994,0.49000017]
[1771952300172,44.84017679,78.055,77.994,0.49000017]
[1771952301572,13.56585847,78.05,77.994,0.49000017]
[1771952301991,44.84017679,78.055,77.996,0.49000017]
[1771952303096,13.56585847,78.04,77.996,0.49000017]
[1771952303387,13.53435063,78.04,77.996,0.49000017]
[1771952303898,44.84937017,78.039,77.976,44.88560581]
[1771952304197,13.53435063,78.03,77.987,0.49000017]
[1771952304401,12.81410576,78.039,77.987,0.49000017]
[1771952304771,44.84937017,78.039,77.987,0.49000017]
[1771952304973,13.53435063,78.03,77.979,0.49000017]
[1771952305178,3.69383402,78.036,77.979,0.49000017]
[1771952306191,12.8147626,78.035,77.981,0.49374595]
[1771952306398,13.53435063,78.04,77.983,3.69383402]
[1771952306569,12.81130454,78.057,77.984,0.49374595]
[1771952306774,12.81147908,78.055,77.984,0.49374595]
[1771952306987,13.63435063,78.07,77.984,0.49374595]
[1771952307188,12.80997354,78.065,77.984,0.49374595]
[1771952307401,13.63435063,78.07,77.984,0.49374595]
[1771952307703,13.53435063,78.04,77.984,3.69383402]
[1771952307883,13.53435063,78.05,77.985,0.49374595]
[1771952308084,13.05223404,78.056,77.985,0.49374595]
[1771952308283,13.05223404,78.056,77.99,0.49374595]
[1771952309196,0.2408126,78.056,77.99,0.49374595]
[1771952309781,13.63435063,78.07,77.989,3.69383402]
[1771952309782,0.1,78.07,77.989,3.69383402]
[1771952310082,13.53435063,78.13,78.011,3.69383402]
[1771952310298,102.34236078,78.169,78.032,3.69383402]
[1771952310478,13.53435063,78.14,78.048,0.49374595]
[1771952310894,3.69383402,78.156,78.048,17.21269948]
[1771952311097,12.79132236,78.178,78.058,5.36086188]
[1771952311288,12.79132236,78.178,78.086,5.85460783]
[1771952311497,13.53435063,78.17,78.09,0.49374595]
[1771952311694,13.53435063,78.15,78.09,0.49374595]
[1771952311895,13.53435063,78.14,78.09,0.49374595]
[1771952312087,13.53435063,78.13,78.09,0.49374595]
[1771952312284,12.79934467,78.129,78.091,12.80557298]
[1771952312486,12.79934467,78.129,78.082,13.30069355]
[1771952312487,13.53435063,78.12,78.082,13.30069355]
[1771952312691,13.53435063,78.12,78.077,12.80786892]
[1771952312892,13.53435063,78.11,78.064,0.49374595]
[1771952313097,13.53435063,78.11,78.068,0.49374595]
[1771952313301,13.53435063,78.1,78.062,12.81019012]
[1771952313604,13.53435063,78.1,78.059,13.30452628]
[1771952314600,12.80426125,78.099,78.051,0.49374595]
[1771952315502,32.00307778,78.118,78.051,0.49374595]
[1771952315696,12.8016386,78.115,78.092,5.50201159]
[1771952315898,13.53435063,78.11,78.092,5.50201159]
[1771952316404,13.53435063,78.12,78.092,5.50201159]
[1771952316599,12.80098311,78.119,78.092,5.50201159]
[1771952317283,57.72,78.18,78.094,0.49374595]
[1771952317603,13.53435063,78.17,78.097,0.49374595]
[1771952318809,13.53435063,78.17,78.102,0.49374595]
[1771952321106,13.53435063,78.17,78.085,51.22586232]
[1771952321107,3.69383402,78.194,78.104,0.49374595]
[1771952321307,6.68830818,78.201,78.115,0.49374595]
[1771952321308,12.78772378,78.2,78.115,0.49374595]
[1771952322089,0.2408126,78.212,78.124,0.49374595]
[1771952322589,12.78592525,78.211,78.133,0.49374595]
[1771952322790,13.53435063,78.21,78.133,0.49374595]
[1771952323195,12.78625222,78.209,78.138,0.49374595]
[1771952325014,13.53435063,78.2,78.138,0.49374595]
[1771952325197,12.78625222,78.209,78.14,0.49374595]
[1771952325722,0.2408126,78.212,78.14,0.49374595]
[1771952325921,12.78592525,78.211,78.14,0.49374595]
[1771952326098,0.2408126,78.212,78.143,0.49374595]
[1771952326622,12.78592525,78.211,78.143,0.49374595]
[1771952327118,0.2408126,78.212,78.143,0.49374595]
[1771952327415,0.2408126,78.212,78.112,17.21269948]
[1771952327416,13.53435063,78.21,78.148,0.49374595]
[1771952327592,13.53435063,78.2,78.148,0.49374595]
[1771952328123,0.2408126,78.212,78.148,0.49374595]
[1771952328405,12.78592525,78.211,78.148,0.49374595]
[1771952328620,13.53435063,78.21,78.148,0.49374595]
[1771952328794,13.53435063,78.2,78.148,0.49374595]
[1771952329103,13.53435063,78.21,78.148,0.49374595]
[1771952329323,12.78625222,78.209,78.149,44.78624165]
[1771952329487,0.2408126,78.212,78.15,0.49374595]
[1771952329890,13.0266983,78.212,78.15,0.49374595]
[1771952330512,13.53435063,78.21,78.15,0.49374595]
[1771952331617,13.53435063,78.21,78.133,3.69383402]
[1771952331618,13.53435063,78.2,78.152,0.49374595]
[1771952331789,13.53435063,78.19,78.152,0.49374595]
[1771952331993,13.53435063,78.2,78.152,0.49374595]
[1771952333892,13.53435063,78.19,78.142,0.49374595]